fUST/lending_fUST_20240728
["ID","MTS","AMOUNT","RATE_DAILY","PERIOD"]
[333452752,1722137983180,-500.0,0.00013698,2]
[333452753,1722137983204,-500.0,0.00013698,2]
[333452754,1722137983233,-506.09737357,0.00013698,2]
[333452755,1722137983262,-500.0,0.00013698,2]
[333452756,1722137983286,-500.0,0.00013698,2]
[333452757,1722137983311,-500.0,0.00013698,2]
[333452758,1722137983336,-500.0,0.00013698,2]
[333452759,1722137983361,-500.0,0.00013698,2]
[333452760,1722137983384,-500.0,0.00013698,2]
[333452761,1722137983409,-500.0,0.00013698,2]
[333452762,1722137983435,-500.0,0.00013698,2]
[333452763,1722137983462,-500.0,0.00013698,2]
[333452764,1722137983487,-153.90866964,0.00013698,2]
[333452765,1722137983510,-500.0,0.00013698,2]
[333452766,1722137983534,-500.0,0.00013698,2]
[333452767,1722137983558,-500.0,0.00013698,2]
[333452768,1722137983582,-500.0,0.00013698,2]
[333452769,1722137983605,-500.0,0.00013698,2]
[333452770,1722137983631,-500.0,0.00013698,2]
[333452771,1722137983657,-500.0,0.00013698,2]
[333452772,1722137983682,-500.0,0.00013698,2]
[333452773,1722137983708,-500.0,0.00013698,2]
[333452774,1722137983732,-500.0,0.00013698,2]
[333452775,1722137983757,-500.0,0.00013698,2]
[333452776,1722137983781,-500.0,0.00013698,2]
[333452777,1722137983805,-500.0,0.00013698,2]
[333452778,1722137983829,-500.0,0.00013698,2]
[333452779,1722137983856,-500.0,0.00013698,2]
[333452780,1722137983881,-502.11662087,0.00013698,2]
[333452781,1722137983905,-500.0,0.00013698,2]
[333452782,1722137983932,-500.0,0.00013698,2]
[333452783,1722137983959,-500.0,0.00013698,2]
[333452784,1722137983984,-500.0,0.00013698,2]
[333452785,1722137984008,-500.0,0.00013698,2]
[333452786,1722137984033,-500.0,0.00013698,2]
[333452787,1722137984057,-500.0,0.00013698,2]
[333452788,1722137984082,-500.0,0.00013698,2]
[333452789,1722137984107,-500.0,0.00013698,2]
[333452790,1722137984131,-500.0,0.00013698,2]
[333452791,1722137984155,-500.0,0.00013698,2]
[333452792,1722137984181,-500.0,0.00013698,2]
[333452793,1722137984205,-500.0,0.00013698,2]
[333452794,1722137984228,-500.0,0.00013698,2]
[333452795,1722137984256,-558.53222212,0.00013698,2]
[333452796,1722137984281,-500.0,0.00013698,2]
[333452797,1722137984306,-500.0,0.00013698,2]
[333452798,1722137984332,-201.12181834,0.00013698,2]
[333452799,1722137984357,-500.0,0.00013698,2]
[333452800,1722137984383,-500.0,0.00013698,2]
[333452801,1722137984408,-537.04585368,0.00013698,2]
[333452802,1722137984437,-500.0,0.00013698,2]
[333452803,1722137984464,-500.0,0.00013698,2]
[333452804,1722137984491,-506.10630303,0.00013698,2]
[333452805,1722137984515,-500.0,0.00013698,2]
[333452806,1722137984538,-500.0,0.00013698,2]
[333452807,1722137984567,-500.0,0.00013698,2]
[333452808,1722137984591,-500.0,0.00013698,2]
[333452809,1722137984620,-500.0,0.00013698,2]
[333452810,1722137984646,-500.0,0.00013698,2]
[333452811,1722137984673,-500.0,0.00013698,2]
[333452812,1722137984701,-500.0,0.00013698,2]
[333452813,1722137984727,-527.12,0.00013698,2]
[333452814,1722137984751,-514.53375876,0.00013698,2]
[333452815,1722137984776,-500.0,0.00013698,2]
[333452816,1722137984801,-500.0,0.00013698,2]
[333452817,1722137984825,-500.0,0.00013698,2]
[333452818,1722137984851,-500.0,0.00013698,2]
[333452819,1722137984879,-500.0,0.00013698,2]
[333452820,1722137984904,-500.0,0.00013698,2]
[333452821,1722137984930,-500.0,0.00013698,2]
[333452822,1722137984955,-500.0,0.00013698,2]
[333452823,1722137984981,-500.0,0.00013698,2]
[333452824,1722137985007,-500.0,0.00013698,2]
[333452825,1722137985032,-500.0,0.00013698,2]
[333452826,1722137985057,-500.0,0.00013698,2]
[333452827,1722137985082,-500.0,0.00013698,2]
[333452828,1722137985106,-503.75673307,0.00013698,2]
[333452829,1722137985131,-500.0,0.00013698,2]
[333452830,1722137985156,-500.0,0.00013698,2]
[333452831,1722137985181,-500.0,0.00013698,2]
[333452832,1722137985206,-500.0,0.00013698,2]
[333452833,1722137985230,-500.0,0.00013698,2]
[333452834,1722137985255,-500.0,0.00013698,2]
[333452835,1722137985279,-500.0,0.00013698,2]
[333452836,1722137985305,-500.0,0.00013698,2]
[333452837,1722137985329,-502.88311085,0.00013698,2]
[333452838,1722137985355,-934.89,0.00013698,2]
[333452839,1722137985380,-503.34806146,0.00013698,2]
[333452840,1722137985406,-3101.72,0.00013698,2]
[333452841,1722137985431,-505.31951478,0.00013698,2]
[333452842,1722137985458,-500.0,0.00013698,2]
[333452843,1722137985486,-500.0,0.00013698,2]
[333452844,1722137985511,-500.0,0.00013698,2]
[333452845,1722137985536,-500.0,0.00013698,2]
[333452846,1722137985564,-1683.41,0.00013698,2]
[333452847,1722137985591,-500.0,0.00013698,2]
[333452848,1722137985617,-506.59107016,0.00013698,2]
[333452849,1722137985641,-500.0,0.00013698,2]
[333452850,1722137985666,-500.0,0.00013698,2]
[333452851,1722137985691,-500.0,0.00013698,2]
[333452852,1722137985717,-500.0,0.00013698,2]
[333452853,1722137985744,-500.0,0.00013698,2]
[333452854,1722137985770,-505.39204625,0.00013698,2]
[333452855,1722137985794,-504.95028717,0.00013698,2]
[333452856,1722137985818,-500.0,0.00013698,2]
[333452857,1722137985844,-500.0,0.00013698,2]
[333452858,1722137985870,-504.82807091,0.00013698,2]
[333452859,1722137985894,-500.0,0.00013698,2]
[333452860,1722137985923,-500.0,0.00013698,2]
[333452861,1722137985951,-301.35966032,0.00013698,2]
[333452862,1722137985977,-500.0,0.00013698,2]
[333452863,1722137986003,-500.0,0.00013698,2]
[333452864,1722137986027,-500.0,0.00013698,2]
[333452865,1722137986051,-500.0,0.00013698,2]
[333452866,1722137986184,-522.41,0.00013698,2]
[333452867,1722137986209,-507.42712433,0.00013698,2]
[333452868,1722137986235,-500.0,0.00013698,2]
[333452869,1722137986263,-500.0,0.00013698,2]
[333452870,1722137986289,-500.0,0.00013698,2]
[333452871,1722137986316,-500.0,0.00013698,2]
[333452872,1722137986340,-500.0,0.00013698,2]
[333452873,1722137986365,-500.0,0.00013698,2]
[333452874,1722137986390,-615.21,0.00013698,2]
[333452875,1722137986414,-500.0,0.00013698,2]
[333452876,1722137986439,-500.0,0.00013698,2]
[333452877,1722137987148,-500.0,0.00013698,2]
[333452878,1722137987175,-500.0,0.00013698,2]
[333452879,1722137987199,-500.0,0.00013698,2]
[333452880,1722137987227,-500.0,0.00013698,2]
[333452881,1722137987253,-500.0,0.00013698,2]
[333452882,1722137987278,-500.0,0.00013698,2]
[333452883,1722137987305,-279.57258247,0.00013698,2]
[333452884,1722138381039,500.0,0.0002334,120]
[333452885,1722138429111,-370.31403064,9.999e-05,2]
[333452886,1722138429133,-266.70119659,9.999e-05,2]
[333452887,1722138429156,-287.60472243,0.0001,2]
[333452888,1722138429180,-147.11530131,0.0001,2]
[333452889,1722138435137,-224.05123896,9.999e-05,2]
[333452890,1722138435160,-54.30083783,0.0001,2]
[333452891,1722138435185,-2742.56370581,0.00013688,2]
[333452892,1722138448109,-552.11199299,0.00010959,2]
[333452893,1722138553201,-214.73970325,9.999e-05,2]
[333452894,1722138553226,-63.68800701,0.00010959,2]
[333452977,1722138637973,-99.19183216,0.00013425,2]
[333452986,1722138639998,-72.01266584,0.00013425,2]
[333452987,1722138640009,-190.11,0.000135,2]
[333452988,1722138640018,-925.74995429,0.00013598,2]
[333452989,1722138640027,-3339.87839438,0.00013688,2]
[333452990,1722138640059,-4188.65371,0.00013688,2]
[333452991,1722138640070,-59296.0871079,0.00013688,2]
[333452992,1722138640081,-500.0,0.00013698,2]
[333452993,1722138640091,-431.82084717,0.00013698,2]
[333452994,1722138640101,-500.0,0.00013698,2]
[333452995,1722138640113,-500.0,0.00013698,2]
[333452996,1722138640124,-500.0,0.00013698,2]
[333452997,1722138640134,-500.0,0.00013698,2]
[333452998,1722138640143,-510.51566055,0.00013698,2]
[333452999,1722138640152,-504.88912628,0.00013698,2]
[333453000,1722138640162,-500.0,0.00013698,2]
[333453001,1722138640175,-500.0,0.00013698,2]
[333453002,1722138640184,-327.64134499,0.00013698,2]
[333453003,1722138640193,-500.0,0.00013698,2]
[333453004,1722138640203,-500.0,0.00013698,2]
[333453005,1722138640214,-500.79895406,0.00013698,2]
[333453006,1722138640223,-511.27222313,0.00013698,2]
[333453007,1722138640233,-503.30146562,0.00013698,2]
[333453008,1722138640243,-615.59375833,0.00013698,2]
[333453009,1722138640253,-500.0,0.00013698,2]
[333453010,1722138640263,-500.0,0.00013698,2]
[333453011,1722138640272,-510.35443744,0.00013698,2]
[333453012,1722138640281,-185.10903634,0.00013698,2]
[333453013,1722138640291,-505.97170029,0.00013698,2]
[333453014,1722138640300,-523.78158009,0.00013698,2]
[333453015,1722138640309,-500.0,0.00013698,2]
[333453016,1722138640318,-500.0,0.00013698,2]
[333453017,1722138640328,-645.55270096,0.00013698,2]
[333453018,1722138640338,-502.3432045,0.00013698,2]
[333453019,1722138640347,-500.0,0.00013698,2]
[333453020,1722138640356,-521.94960153,0.00013698,2]
[333453021,1722138640366,-500.0,0.00013698,2]
[333453022,1722138640377,-502.32427847,0.00013698,2]
[333453023,1722138640386,-507.27027371,0.00013698,2]
[333453024,1722138640396,-500.0,0.00013698,2]
[333453025,1722138640405,-641.92796995,0.00013698,2]
[333453026,1722138640414,-500.0,0.00013698,2]
[333453027,1722138640423,-500.0,0.00013698,2]
[333453028,1722138640433,-500.0,0.00013698,2]
[333453029,1722138640442,-500.0,0.00013698,2]
[333453030,1722138640451,-500.0,0.00013698,2]
[333453031,1722138640461,-500.0,0.00013698,2]
[333453032,1722138640470,-503.37099468,0.00013698,2]
[333453033,1722138640479,-500.0,0.00013698,2]
[333453034,1722138640489,-500.0,0.00013698,2]
[333453035,1722138640499,-500.0,0.00013698,2]
[333453036,1722138640509,-502.22379633,0.00013698,2]
[333453037,1722138640518,-500.0,0.00013698,2]
[333453038,1722138640527,-501.09450704,0.00013698,2]
[333453039,1722138640537,-500.0,0.00013698,2]
[333453040,1722138640546,-503.02095139,0.00013698,2]
[333453041,1722138640555,-502.26711902,0.00013698,2]
[333453042,1722138640563,-500.0,0.00013698,2]
[333453043,1722138640573,-500.0,0.00013698,2]
[333453044,1722138640582,-500.0,0.00013698,2]
[333453045,1722138640591,-500.0,0.00013698,2]
[333453046,1722138640600,-500.0,0.00013698,2]
[333453047,1722138640610,-500.0,0.00013698,2]
[333453048,1722138640619,-500.0,0.00013698,2]
[333453049,1722138640629,-500.0,0.00013698,2]
[333453050,1722138640639,-500.0,0.00013698,2]
[333453051,1722138640648,-500.0,0.00013698,2]
[333453052,1722138640657,-500.0,0.00013698,2]
[333453053,1722138640666,-500.0,0.00013698,2]
[333453054,1722138640675,-502.46805735,0.00013698,2]
[333453055,1722138640684,-500.0,0.00013698,2]
[333453056,1722138640694,-506.19503965,0.00013698,2]
[333453057,1722138640703,-500.0,0.00013698,2]
[333453058,1722138640712,-500.0,0.00013698,2]
[333453059,1722138640722,-500.0,0.00013698,2]
[333453060,1722138640731,-500.0,0.00013698,2]
[333453061,1722138640741,-504.04531841,0.00013698,2]
[333453062,1722138640751,-500.0,0.00013698,2]
[333453063,1722138640760,-500.0,0.00013698,2]
[333453064,1722138640769,-254.03992776,0.00013698,2]
[333453065,1722138640778,-500.0,0.00013698,2]
[333453066,1722138640788,-500.0,0.00013698,2]
[333453067,1722138640797,-500.0,0.00013698,2]
[333453068,1722138640806,-576.76107088,0.00013698,2]
[333453069,1722138640816,-500.0,0.00013698,2]
[333453070,1722138640825,-500.0,0.00013698,2]
[333453071,1722138640834,-500.0,0.00013698,2]
[333453072,1722138640844,-500.0,0.00013698,2]
[333453073,1722138640855,-500.0,0.00013698,2]
[333453074,1722138640864,-501.31765663,0.00013698,2]
[333453075,1722138640874,-509.08860012,0.00013698,2]
[333453076,1722138640886,-504.79220923,0.00013698,2]
[333453077,1722138640896,-500.0,0.00013698,2]
[333453078,1722138640907,-500.0,0.00013698,2]
[333453079,1722138640917,-500.0,0.00013698,2]
[333453080,1722138640927,-500.0,0.00013698,2]
[333453081,1722138640936,-211.490601,0.00013698,2]
[333453082,1722138640947,-500.0,0.00013698,2]
[333453083,1722138640957,-500.0,0.00013698,2]
[333453084,1722138640968,-500.0,0.00013698,2]
[333453085,1722138640977,-502.58600496,0.00013698,2]
[333453086,1722138640987,-500.0,0.00013698,2]
[333453087,1722138640998,-500.0,0.00013698,2]
[333453088,1722138641008,-389.60615886,0.00013698,2]
[333453089,1722138641017,-500.0,0.00013698,2]
[333453090,1722138641030,-500.0,0.00013698,2]
[333453091,1722138641040,-500.0,0.00013698,2]
[333453092,1722138641050,-501.99836143,0.00013698,2]
[333453093,1722138641060,-500.0,0.00013698,2]
[333453094,1722138641071,-500.0,0.00013698,2]
[333453095,1722138641082,-500.0,0.00013698,2]
[333453096,1722138641093,-501.86956202,0.00013698,2]
[333453097,1722138641103,-501.24379906,0.00013698,2]
[333453098,1722138641114,-500.0,0.00013698,2]
[333453099,1722138641122,-598.47691009,0.00013698,2]
[333453100,1722138641131,-592.82290165,0.00013698,2]
[333453101,1722138641140,-500.0,0.00013698,2]
[333453102,1722138641151,-482.80309057,0.00013698,2]
[333453103,1722138641162,-500.0,0.00013698,2]
[333453104,1722138641176,-500.0,0.00013698,2]
[333453105,1722138641186,-500.0,0.00013698,2]
[333453106,1722138641196,-500.0,0.00013698,2]
[333453107,1722138641206,-545.13303043,0.00013698,2]
[333453108,1722138641217,-501.0819928,0.00013698,2]
[333453109,1722138641238,-500.0,0.00013698,2]
[333453110,1722138641251,-437.94005102,0.00013698,2]
[333453111,1722138641261,-503.1982018,0.00013698,2]
[333453112,1722138641272,-500.0,0.00013698,2]
[333453113,1722138641283,-500.0,0.00013698,2]
[333453114,1722138641449,-500.0,0.00013698,2]
[333453115,1722138641466,-500.0,0.00013698,2]
[333453116,1722138641476,-500.0,0.00013698,2]
[333453117,1722138641486,-500.0,0.00013698,2]
[333453118,1722138641496,-500.0,0.00013698,2]
[333453119,1722138641506,-500.0,0.00013698,2]
[333453120,1722138641515,-500.0,0.00013698,2]
[333453121,1722138641525,-500.0,0.00013698,2]
[333453122,1722138641534,-500.0,0.00013698,2]
[333453123,1722138641544,-500.0,0.00013698,2]
[333453124,1722138641553,-500.0,0.00013698,2]
[333453125,1722138641562,-500.0,0.00013698,2]
[333453126,1722138641571,-500.0,0.00013698,2]
[333453127,1722138641581,-500.0,0.00013698,2]
[333453128,1722138641591,-500.0,0.00013698,2]
[333453129,1722138641601,-266.095325,0.00013698,2]
[333453130,1722138641611,-500.0,0.00013698,2]
[333453131,1722138641620,-500.0,0.00013698,2]
[333453132,1722138641630,-217.67033221,0.00013698,2]
[333453133,1722138641639,-514.48357762,0.00013698,2]
[333453134,1722138641649,-500.0,0.00013698,2]
[333453135,1722138641658,-500.0,0.00013698,2]
[333453136,1722138641668,-607.39199258,0.00013698,2]
[333453137,1722138641678,-179.05800523,0.00013698,2]
[333453138,1722138641688,-504.98451102,0.00013698,2]
[333453139,1722138641697,-500.0,0.00013698,2]
[333453140,1722138641707,-500.0,0.00013698,2]
[333453141,1722138641717,-504.60021453,0.00013698,2]
[333453142,1722138641727,-500.0,0.00013698,2]
[333453143,1722138641736,-500.0,0.00013698,2]
[333453144,1722138641746,-500.0,0.00013698,2]
[333453145,1722138641756,-500.0,0.00013698,2]
[333453146,1722138641766,-502.15668245,0.00013698,2]
[333453147,1722138641775,-500.0,0.00013698,2]
[333453148,1722138641785,-500.0,0.00013698,2]
[333453149,1722138641794,-197.50979917,0.00013698,2]
[333453150,1722138641803,-500.0,0.00013698,2]
[333453151,1722138641813,-500.0,0.00013698,2]
[333453152,1722138641822,-500.0,0.00013698,2]
[333453153,1722138641832,-507.13807192,0.00013698,2]
[333453154,1722138641842,-500.0,0.00013698,2]
[333453155,1722138641851,-500.0,0.00013698,2]
[333453156,1722138641861,-500.0,0.00013698,2]
[333453157,1722138641871,-500.0,0.00013698,2]
[333453158,1722138641880,-500.0,0.00013698,2]
[333453159,1722138641890,-500.0,0.00013698,2]
[333453160,1722138641900,-519.55300726,0.00013698,2]
[333453161,1722138641910,-500.0,0.00013698,2]
[333453162,1722138641919,-498.03383409,0.00013698,2]
[333453163,1722138641929,-500.0,0.00013698,2]
[333453164,1722138641938,-506.28590501,0.00013698,2]
[333453165,1722138641948,-500.0,0.00013698,2]
[333453166,1722138641957,-503.02588686,0.00013698,2]
[333453167,1722138641967,-500.0,0.00013698,2]
[333453168,1722138641978,-500.0,0.00013698,2]
[333453169,1722138641987,-500.0,0.00013698,2]
[333453170,1722138641997,-500.0,0.00013698,2]
[333453171,1722138642010,-500.0,0.00013698,2]
[333453172,1722138642022,-500.0,0.00013698,2]
[333453173,1722138642032,-500.0,0.00013698,2]
[333453174,1722138642042,-500.0,0.00013698,2]
[333453175,1722138642051,-500.0,0.00013698,2]
[333453176,1722138642061,-500.0,0.00013698,2]
[333453177,1722138642070,-500.0,0.00013698,2]
[333453178,1722138642080,-530.45570746,0.00013698,2]
[333453179,1722138642089,-500.0,0.00013698,2]
[333453180,1722138642099,-500.0,0.00013698,2]
[333453181,1722138642109,-264.35422318,0.00013698,2]
[333453182,1722138642119,-500.0,0.00013698,2]
[333453183,1722138642129,-500.0,0.00013698,2]
[333453184,1722138642138,-500.0,0.00013698,2]
[333453185,1722138642148,-500.0,0.00013698,2]
[333453186,1722138642158,-367.81014289,0.00013698,2]
[333453187,1722138642170,-503.53182512,0.00013698,2]
[333453188,1722138642179,-500.0,0.00013698,2]
[333453189,1722138642189,-500.0,0.00013698,2]
[333453190,1722138642199,-500.0,0.00013698,2]
[333453191,1722138642209,-503.09360936,0.00013698,2]
[333453192,1722138642220,-583.0711377,0.00013698,2]
[333453193,1722138642230,-505.81946245,0.00013698,2]
[333453194,1722138642242,-500.0,0.00013698,2]
[333453195,1722138642256,-500.0,0.00013698,2]
[333453196,1722138642266,-504.79302715,0.00013698,2]
[333453197,1722138642275,-500.0,0.00013698,2]
[333453198,1722138642285,-500.0,0.00013698,2]
[333453199,1722138642295,-500.0,0.00013698,2]
[333453200,1722138642305,-500.0,0.00013698,2]
[333453201,1722138642314,-500.0,0.00013698,2]
[333453202,1722138642323,-500.0,0.00013698,2]
[333453203,1722138642333,-500.0,0.00013698,2]
[333453204,1722138642343,-500.0,0.00013698,2]
[333453205,1722138642354,-603.51210857,0.00013698,2]
[333453206,1722138642363,-509.15627651,0.00013698,2]
[333453207,1722138642373,-500.0,0.00013698,2]
[333453208,1722138642383,-429.54414401,0.00013698,2]
[333453209,1722138642392,-500.0,0.00013698,2]
[333453210,1722138642401,-507.0636712,0.00013698,2]
[333453211,1722138642413,-500.0,0.00013698,2]
[333453212,1722138642424,-500.0,0.00013698,2]
[333453213,1722138642435,-232.56848709,0.00013698,2]
[333453214,1722138642446,-500.0,0.00013698,2]
[333453215,1722138642459,-500.0,0.00013698,2]
[333453216,1722138642468,-500.0,0.00013698,2]
[333453217,1722138642478,-500.0,0.00013698,2]
[333453218,1722138642487,-502.9115387,0.00013698,2]
[333453219,1722138642496,-505.7949443,0.00013698,2]
[333453220,1722138642509,-501.72412983,0.00013698,2]
[333453221,1722138642519,-500.0,0.00013698,2]
[333453222,1722138642529,-501.84595902,0.00013698,2]
[333453223,1722138642538,-500.0,0.00013698,2]
[333453224,1722138642547,-262.75656386,0.00013698,2]
[333453225,1722138642556,-503.14079257,0.00013698,2]
[333453226,1722138642566,-504.77187067,0.00013698,2]
[333453228,1722138642575,-500.0,0.00013698,2]
[333453229,1722138642584,-500.0,0.00013698,2]
[333453230,1722138642594,-500.0,0.00013698,2]
[333453231,1722138642605,-500.0,0.00013698,2]
[333453232,1722138642616,-500.0,0.00013698,2]
[333453233,1722138642626,-517.49677819,0.00013698,2]
[333453234,1722138642637,-500.0,0.00013698,2]
[333453235,1722138642648,-500.0,0.00013698,2]
[333453236,1722138642660,-500.0,0.00013698,2]
[333453237,1722138642670,-500.0,0.00013698,2]
[333453238,1722138642679,-500.0,0.00013698,2]
[333453239,1722138642689,-500.0,0.00013698,2]
[333453240,1722138642699,-502.31872186,0.00013698,2]
[333453241,1722138642709,-500.0,0.00013698,2]
[333453242,1722138642721,-1071.01,0.00013698,2]
[333453243,1722138642733,-500.0,0.00013698,2]
[333453244,1722138642744,-500.0,0.00013698,2]
[333453245,1722138642756,-500.0,0.00013698,2]
[333453246,1722138642766,-500.0,0.00013698,2]
[333453247,1722138642776,-500.0,0.00013698,2]
[333453248,1722138642786,-500.0,0.00013698,2]
[333453250,1722138642795,-502.11652453,0.00013698,2]
[333453251,1722138642805,-500.0,0.00013698,2]
[333453252,1722138642814,-500.0,0.00013698,2]
[333453253,1722138642824,-500.0,0.00013698,2]
[333453254,1722138642833,-3445.32,0.00013698,2]
[333453255,1722138642842,-952.77,0.00013698,2]
[333453256,1722138642852,-500.0,0.00013698,2]
[333453257,1722138642862,-506.12596428,0.00013698,2]
[333453258,1722138642871,-500.0,0.00013698,2]
[333453259,1722138642880,-500.0,0.00013698,2]
[333453260,1722138642890,-500.0,0.00013698,2]
[333453261,1722138642899,-500.0,0.00013698,2]
[333453262,1722138642908,-1528.85,0.00013698,2]
[333453263,1722138642919,-504.5422049,0.00013698,2]
[333453264,1722138642929,-500.0,0.00013698,2]
[333453265,1722138642938,-500.0,0.00013698,2]
[333453266,1722138642948,-507.16405368,0.00013698,2]
[333453267,1722138642957,-500.0,0.00013698,2]
[333453268,1722138642968,-500.0,0.00013698,2]
[333453269,1722138642977,-505.16,0.00013698,2]
[333453270,1722138642986,-500.0,0.00013698,2]
[333453271,1722138642995,-500.0,0.00013698,2]
[333453272,1722138643005,-500.0,0.00013698,2]
[333453273,1722138643015,-500.0,0.00013698,2]
[333453274,1722138643025,-500.0,0.00013698,2]
[333453275,1722138643034,-500.0,0.00013698,2]
[333453276,1722138643043,-500.0,0.00013698,2]
[333453277,1722138643052,-500.0,0.00013698,2]
[333453278,1722138643061,-500.0,0.00013698,2]
[333453279,1722138643071,-500.0,0.00013698,2]
[333453280,1722138643080,-500.0,0.00013698,2]
[333453281,1722138643089,-500.0,0.00013698,2]
[333453282,1722138643098,-500.0,0.00013698,2]
[333453283,1722138643118,-500.0,0.00013698,2]
[333453284,1722138643128,-500.0,0.00013698,2]
[333453285,1722138643138,-500.0,0.00013698,2]
[333453286,1722138643148,-500.0,0.00013698,2]
[333453287,1722138643158,-500.0,0.00013698,2]
[333453288,1722138643171,-500.0,0.00013698,2]
[333453289,1722138643182,-500.0,0.00013698,2]
[333453290,1722138643192,-500.0,0.00013698,2]
[333453291,1722138643202,-500.0,0.00013698,2]
[333453292,1722138643214,-662.01,0.00013698,2]
[333453293,1722138643224,-500.0,0.00013698,2]
[333453294,1722138643234,-500.0,0.00013698,2]
[333453295,1722138643245,-198.51526294,0.00013698,2]
[333453296,1722138643255,-500.0,0.00013698,2]
[333453297,1722138643265,-272.37734654,0.00013698,2]
[333453298,1722138643274,-500.0,0.00013698,2]
[333453299,1722138643284,-500.0,0.00013698,2]
[333453300,1722138643294,-500.0,0.00013698,2]
[333453301,1722138643303,-500.0,0.00013698,2]
[333453302,1722138643312,-500.0,0.00013698,2]
[333453303,1722138643322,-895.94,0.00013698,2]
[333453304,1722138643332,-500.0,0.00013698,2]
[333453305,1722138643342,-500.0,0.00013698,2]
[333453306,1722138643351,-500.0,0.00013698,2]
[333453307,1722138643361,-500.0,0.00013698,2]
[333453308,1722138643371,-500.0,0.00013698,2]
[333453309,1722138643380,-500.0,0.00013698,2]
[333453310,1722138643390,-500.0,0.00013698,2]
[333453311,1722138643399,-505.50183349,0.00013698,2]
[333453312,1722138643410,-500.0,0.00013698,2]
[333453313,1722138643423,-500.0,0.00013698,2]
[333453314,1722138643433,-2972.49,0.00013698,2]
[333453315,1722138643443,-500.0,0.00013698,2]
[333453316,1722138643452,-500.0,0.00013698,2]
[333453317,1722138643464,-272.37902231,0.00013698,2]
[333453318,1722138643804,-1340.89097769,0.00013698,2]
[333453319,1722138643816,-500.0,0.00013698,2]
[333453320,1722138643827,-502.36369347,0.00013698,2]
[333453321,1722138643838,-500.0,0.00013698,2]
[333453322,1722138643849,-54.77192021,0.00013698,2]
[333453323,1722138643862,-540.95603228,0.00013698,2]
[333453324,1722138643872,-171.14396772,0.00013698,2]
[333453325,1722138645283,271.96228974,9.9e-05,2]
[333453327,1722138645307,1.41107257,9.9e-05,2]
[333453340,1722138646019,-328.85603228,0.00013698,2]
[333453341,1722138646029,-320.51396772,0.00013698,2]
[333453342,1722138646077,-180.22847459,0.00013698,2]
[333453343,1722138646086,-500.0,0.00013698,2]
[333453344,1722138646095,-263.06153986,0.00013698,2]
[333453345,1722138646107,-236.93846014,0.00013698,2]
[333453346,1722138646116,-501.39294185,0.00013698,2]
[333453347,1722138646126,-500.0,0.00013698,2]
[333453349,1722138646135,-500.64,0.00013698,2]
[333453350,1722138646144,-500.0,0.00013698,2]
[333453351,1722138646154,-500.0,0.00013698,2]
[333453352,1722138646164,-500.0,0.00013698,2]
[333453353,1722138646176,-500.0,0.00013698,2]
[333453354,1722138646186,-500.0,0.00013698,2]
[333453355,1722138646195,-71.33871452,0.00013698,2]
[333453356,1722138653093,227.65133635,9.9e-05,2]
[333453357,1722138653115,45.72202596,9.9e-05,2]